[Event "***Titled Tuesday 3|2 Blitz"]
[Site "Chess.com"]
[Date "2017.02.07"]
[Round "6"]
[White "Sebastian"]
[Black "jncool68"]
[Result "1/2-1/2"]
[WhiteElo "2667"]
[BlackElo "2531"]
[TimeControl "180+2"]
[EndTime "14:31:02 PST"]
[Termination "Game drawn by 50-move rule"]

1. e4 {[%clk 0:03:02]} 1... c5 {[%clk 0:03:00.5]} 2. Nf3 {[%clk 0:03:01.7]} 2...
d6 {[%clk 0:03:01.5]} 3. d4 {[%clk 0:03:02.1]} 3... cxd4 {[%clk 0:03:02.7]} 4.
Nxd4 {[%clk 0:03:03.8]} 4... Nf6 {[%clk 0:03:03.8]} 5. Nc3 {[%clk 0:03:05.4]}
5... a6 {[%clk 0:03:04.2]} 6. Bg5 {[%clk 0:03:06.4]} 6... e6 {[%clk 0:03:05.4]}
7. f4 {[%clk 0:03:06]} 7... h6 {[%clk 0:03:06.6]} 8. Bh4 {[%clk 0:03:06.4]} 8...
Qb6 {[%clk 0:03:07.6]} 9. Qd2 {[%clk 0:03:07.7]} 9... Qxb2 {[%clk 0:03:07.3]}
10. Rb1 {[%clk 0:03:09.4]} 10... Qa3 {[%clk 0:03:08.4]} 11. e5 {[%clk
0:03:10.8]} 11... dxe5 {[%clk 0:03:09.2]} 12. fxe5 {[%clk 0:03:12.4]} 12... Nfd7
{[%clk 0:03:09.8]} 13. Ne4 {[%clk 0:03:13.5]} 13... Qxa2 {[%clk 0:03:10.3]} 14.
Rd1 {[%clk 0:03:14.3]} 14... Qd5 {[%clk 0:03:10.8]} 15. Qe3 {[%clk 0:03:15.3]}
15... Qxe5 {[%clk 0:03:07]} 16. Be2 {[%clk 0:03:16.5]} 16... Bc5 {[%clk
0:03:00.7]} 17. Bg3 {[%clk 0:03:17]} 17... Qd5 {[%clk 0:02:57.4]} 18. c4 {[%clk
0:03:17.6]} 18... Bxd4 {[%clk 0:02:58.1]} 19. Rxd4 {[%clk 0:03:19.3]} 19... Qa5+
{[%clk 0:02:58.9]} 20. Rd2 {[%clk 0:03:20.7]} 20... O-O {[%clk 0:02:56.4]} 21.
Bd6 {[%clk 0:03:21.7]} 21... f5 {[%clk 0:02:53.9]} 22. Bxf8 {[%clk 0:03:22.3]}
22... Nxf8 {[%clk 0:02:54.4]} 23. Nd6 {[%clk 0:03:23.7]} 23... Nc6 {[%clk
0:02:54.1]} 24. g4 {[%clk 0:03:08.2]} 24... fxg4 {[%clk 0:02:55]} 25. Bxg4
{[%clk 0:03:08.3]} 25... Qa1+ {[%clk 0:02:50]} 26. Bd1 {[%clk 0:03:07.4]} 26...
Qe5 {[%clk 0:02:47]} 27. Kf2 {[%clk 0:02:53.3]} 27... Ng6 {[%clk 0:02:29.4]} 28.
Bf3 {[%clk 0:02:42.8]} 28... Qxe3+ {[%clk 0:02:19.8]} 29. Kxe3 {[%clk 0:02:44]}
29... Nge5 {[%clk 0:02:21.1]} 30. Be2 {[%clk 0:02:27.5]} 30... b5 {[%clk
0:02:19.5]} 31. cxb5 {[%clk 0:01:51.4]} 31... axb5 {[%clk 0:02:21.4]} 32. Nxb5
{[%clk 0:01:52.3]} 32... Ra4 {[%clk 0:02:12.5]} 33. Rhd1 {[%clk 0:01:47.5]}
33... Ba6 {[%clk 0:02:12.1]} 34. Nc7 {[%clk 0:01:35.7]} 34... Bxe2 {[%clk
0:02:05.2]} 35. Rxe2 {[%clk 0:01:36.9]} 35... Rh4 {[%clk 0:01:13]} 36. Nxe6
{[%clk 0:01:34.1]} 36... Kf7 {[%clk 0:01:08]} 37. Nc5 {[%clk 0:01:18]} 37... g5
{[%clk 0:00:57.7]} 38. Ne4 {[%clk 0:00:59.6]} 38... Nc4+ {[%clk 0:00:52.7]} 39.
Kf3 {[%clk 0:00:56.3]} 39... N6e5+ {[%clk 0:00:39.8]} 40. Kg2 {[%clk 0:00:56.7]}
40... Ng4 {[%clk 0:00:37.6]} 41. Rd7+ {[%clk 0:00:37.4]} 41... Kg6 {[%clk
0:00:33.4]} 42. Kg3 {[%clk 0:00:33.3]} 42... Nce3 {[%clk 0:00:29.2]} 43. Rd6+
{[%clk 0:00:22]} 43... Kg7 {[%clk 0:00:30.4]} 44. Kf3 {[%clk 0:00:18.7]} 44...
Nf5 {[%clk 0:00:24.3]} 45. Rd5 {[%clk 0:00:13.4]} 45... Nfe3 {[%clk 0:00:22.1]}
46. Rxe3 {[%clk 0:00:07.1]} 46... Nxe3 {[%clk 0:00:23.2]} 47. Kxe3 {[%clk
0:00:08.1]} 47... Rxh2 {[%clk 0:00:24.8]} 48. Ng3 {[%clk 0:00:09.1]} 48... Kg6
{[%clk 0:00:23.6]} 49. Rd6+ {[%clk 0:00:10.3]} 49... Kf7 {[%clk 0:00:23.1]} 50.
Nf5 {[%clk 0:00:10.2]} 50... h5 {[%clk 0:00:23.6]} 51. Rh6 {[%clk 0:00:10.3]}
51... h4 {[%clk 0:00:23.8]} 52. Kf3 {[%clk 0:00:10.8]} 52... Rh1 {[%clk
0:00:22.6]} 53. Nd6+ {[%clk 0:00:07.5]} 53... Kg7 {[%clk 0:00:23]} 54. Nf5+
{[%clk 0:00:09.1]} 54... Kf7 {[%clk 0:00:24.4]} 55. Ne3 {[%clk 0:00:04.6]} 55...
Ra1 {[%clk 0:00:19.3]} 56. Kg4 {[%clk 0:00:04]} 56... Rg1+ {[%clk 0:00:19]} 57.
Kf5 {[%clk 0:00:05.1]} 57... Ke7 {[%clk 0:00:16.6]} 58. Ng4 {[%clk 0:00:05]}
58... Rg3 {[%clk 0:00:13.1]} 59. Kxg5 {[%clk 0:00:05.7]} 59... h3 {[%clk
0:00:14.5]} 60. Kf4 {[%clk 0:00:05.6]} 60... Ra3 {[%clk 0:00:16.1]} 61. Ne3
{[%clk 0:00:06.4]} 61... Ra4+ {[%clk 0:00:13.8]} 62. Ke5 {[%clk 0:00:06.6]}
62... Ra5+ {[%clk 0:00:14]} 63. Nd5+ {[%clk 0:00:07.2]} 63... Kf7 {[%clk
0:00:15.7]} 64. Rxh3 {[%clk 0:00:07.5]} 64... Kg6 {[%clk 0:00:17.6]} 65. Rg3+
{[%clk 0:00:08.4]} 65... Kf7 {[%clk 0:00:19.1]} 66. Rg5 {[%clk 0:00:07.9]} 66...
Ra1 {[%clk 0:00:19.3]} 67. Rf5+ {[%clk 0:00:03.7]} 67... Kg6 {[%clk 0:00:20.7]}
68. Rf6+ {[%clk 0:00:04.4]} 68... Kg7 {[%clk 0:00:21.4]} 69. Rf3 {[%clk
0:00:05.4]} 69... Re1+ {[%clk 0:00:22.3]} 70. Ne3 {[%clk 0:00:06.5]} 70... Ra1
{[%clk 0:00:22.4]} 71. Ke6 {[%clk 0:00:07.6]} 71... Ra6+ {[%clk 0:00:22.7]} 72.
Ke5 {[%clk 0:00:08.9]} 72... Ra1 {[%clk 0:00:23.9]} 73. Nd5 {[%clk 0:00:09.4]}
73... Re1+ {[%clk 0:00:21.5]} 74. Kf5 {[%clk 0:00:10.8]} 74... Kf7 {[%clk
0:00:22.6]} 75. Ra3 {[%clk 0:00:10.4]} 75... Rf1+ {[%clk 0:00:22.3]} 76. Nf4
{[%clk 0:00:12]} 76... Ke7 {[%clk 0:00:23.9]} 77. Ra6 {[%clk 0:00:12.6]} 77...
Kd7 {[%clk 0:00:24.8]} 78. Ke5 {[%clk 0:00:08.8]} 78... Re1+ {[%clk 0:00:25.9]}
79. Kd4 {[%clk 0:00:09.5]} 79... Rd1+ {[%clk 0:00:27.3]} 80. Nd3 {[%clk
0:00:10.8]} 80... Ke7 {[%clk 0:00:28.9]} 81. Ke4 {[%clk 0:00:10.3]} 81... Rh1
{[%clk 0:00:27.9]} 82. Nf4 {[%clk 0:00:10.3]} 82... Re1+ {[%clk 0:00:27.9]} 83.
Kf5 {[%clk 0:00:11.8]} 83... Kd7 {[%clk 0:00:29.3]} 84. Rh6 {[%clk 0:00:11.7]}
84... Kc7 {[%clk 0:00:28.5]} 85. Ne6+ {[%clk 0:00:12.1]} 85... Kd6 {[%clk
0:00:29]} 86. Ng5+ {[%clk 0:00:11.3]} 86... Kc5 {[%clk 0:00:30.1]} 87. Ne4+
{[%clk 0:00:10.9]} 87... Kd5 {[%clk 0:00:26.7]} 88. Rd6+ {[%clk 0:00:11.2]}
88... Kc4 {[%clk 0:00:28.4]} 89. Ke5 {[%clk 0:00:12.8]} 89... Rh1 {[%clk
0:00:28.3]} 90. Rc6+ {[%clk 0:00:14.1]} 90... Kb5 {[%clk 0:00:29.4]} 91. Rc2
{[%clk 0:00:14.4]} 91... Rd1 {[%clk 0:00:30.3]} 92. Nd2 {[%clk 0:00:13.5]} 92...
Rh1 {[%clk 0:00:31.2]} 93. Kd4 {[%clk 0:00:12.6]} 93... Rh4+ {[%clk 0:00:30.9]}
94. Ne4 {[%clk 0:00:14.2]} 94... Kb6 {[%clk 0:00:32.2]} 95. Kd5 {[%clk
0:00:15.3]} 95... Rh5+ {[%clk 0:00:32.1]} 96. Ke6 {[%clk 0:00:15.9]} 96... Kb5
{[%clk 0:00:32.1]} 97. Nd6+ {[%clk 0:00:15.5]} 97... Kb4 {[%clk 0:00:33]} 98.
Rc8 {[%clk 0:00:17]} 98... Rh6+ {[%clk 0:00:33.3]} 99. Kd5 {[%clk 0:00:18.3]}
99... Rh5+ {[%clk 0:00:34.6]} 100. Kd4 {[%clk 0:00:19.6]} 100... Rh4+ {[%clk
0:00:34]} 101. Ne4 {[%clk 0:00:21.1]} 101... Kb5 {[%clk 0:00:35.6]} 102. Rc5+
{[%clk 0:00:21.4]} 102... Kb6 {[%clk 0:00:36.9]} 103. Rc4 {[%clk 0:00:22]}
103... Rh5 {[%clk 0:00:37.9]} 104. Rc1 {[%clk 0:00:19.5]} 104... Rh4 {[%clk
0:00:36.9]} 105. Re1 {[%clk 0:00:18.5]} 105... Kc6 {[%clk 0:00:36.6]} 106. Ke5
{[%clk 0:00:19.8]} 106... Kb6 {[%clk 0:00:37.1]} 107. Nf6 {[%clk 0:00:16.4]}
107... Kc5 {[%clk 0:00:34.9]} 108. Rc1+ {[%clk 0:00:16.9]} 108... Kb4 {[%clk
0:00:36.2]} 109. Kd5 {[%clk 0:00:14.9]} 109... Kb3 {[%clk 0:00:35.3]} 110. Ne4
{[%clk 0:00:15.9]} 110... Rh8 {[%clk 0:00:33]} 111. Nc5+ {[%clk 0:00:15.4]}
111... Kb2 {[%clk 0:00:33.4]} 112. Rg1 {[%clk 0:00:13.2]} 112... Rh4 {[%clk
0:00:33.1]} 113. Rg3 {[%clk 0:00:11.8]} 113... Kc2 {[%clk 0:00:32.6]} 114. Ne4
{[%clk 0:00:12.4]} 114... Rh8 {[%clk 0:00:32.7]} 1/2-1/2

[Event "***Titled Tuesday 3|2 Blitz"]
[Site "Chess.com"]
[Date "2017.02.07"]
[Round "6"]
[White "Noukii"]
[Black "GMBenjaminBok"]
[Result "1/2-1/2"]
[WhiteElo "2626"]
[BlackElo "2633"]
[TimeControl "180+2"]
[EndTime "14:32:00 PST"]
[Termination "Game drawn by 50-move rule"]

1. d4 {[%clk 0:03:02]} 1... Nf6 {[%clk 0:03:01.1]} 2. Nf3 {[%clk 0:03:01.5]}
2... g6 {[%clk 0:03:00]} 3. Bg5 {[%clk 0:03:01.7]} 3... Bg7 {[%clk 0:03:01.1]}
4. Nbd2 {[%clk 0:03:01.3]} 4... O-O {[%clk 0:03:02.1]} 5. c3 {[%clk 0:03:02.8]}
5... d6 {[%clk 0:03:03.1]} 6. e4 {[%clk 0:03:04.2]} 6... c5 {[%clk 0:03:03.9]}
7. dxc5 {[%clk 0:03:05.7]} 7... dxc5 {[%clk 0:03:05.8]} 8. Bc4 {[%clk
0:03:04.1]} 8... Nc6 {[%clk 0:03:05.8]} 9. Qe2 {[%clk 0:03:05.5]} 9... Qc7
{[%clk 0:03:05.7]} 10. O-O {[%clk 0:02:39.8]} 10... b6 {[%clk 0:02:37.6]} 11.
Rfe1 {[%clk 0:02:19]} 11... Bb7 {[%clk 0:01:51.6]} 12. Rad1 {[%clk 0:02:15.1]}
12... Rad8 {[%clk 0:01:38.6]} 13. Bh4 {[%clk 0:02:06.1]} 13... Nh5 {[%clk
0:01:34.3]} 14. Bg3 {[%clk 0:01:43.9]} 14... Nxg3 {[%clk 0:01:34.1]} 15. hxg3
{[%clk 0:01:45.8]} 15... e6 {[%clk 0:01:26.5]} 16. Nf1 {[%clk 0:01:32.5]} 16...
Ne5 {[%clk 0:01:21.6]} 17. Ba6 {[%clk 0:01:26.6]} 17... Ba8 {[%clk 0:01:01.5]}
18. N1h2 {[%clk 0:01:26.6]} 18... Nxf3+ {[%clk 0:00:47.5]} 19. Nxf3 {[%clk
0:01:25.8]} 19... Qc6 {[%clk 0:00:48.9]} 20. Bb5 {[%clk 0:01:25.3]} 20... Qb7
{[%clk 0:00:46.8]} 21. Ba6 {[%clk 0:01:20.1]} 21... Qc6 {[%clk 0:00:47.8]} 22.
Bb5 {[%clk 0:01:07.4]} 22... Qc7 {[%clk 0:00:47.9]} 23. Qe3 {[%clk 0:01:01.9]}
23... h6 {[%clk 0:00:47.8]} 24. Nh2 {[%clk 0:01:00.6]} 24... Qb7 {[%clk
0:00:47.3]} 25. f3 {[%clk 0:00:59.6]} 25... Qc7 {[%clk 0:00:47.2]} 26. Kf2
{[%clk 0:00:58.3]} 26... c4 {[%clk 0:00:42.9]} 27. Ng4 {[%clk 0:00:55.8]} 27...
h5 {[%clk 0:00:40.7]} 28. Nh2 {[%clk 0:00:57.5]} 28... Bb7 {[%clk 0:00:40.4]}
29. Nf1 {[%clk 0:00:57.6]} 29... a6 {[%clk 0:00:40.9]} 30. Ba4 {[%clk
0:00:59.2]} 30... b5 {[%clk 0:00:41.8]} 31. Bc2 {[%clk 0:01:00.8]} 31... b4
{[%clk 0:00:40.4]} 32. cxb4 {[%clk 0:00:56.5]} 32... Bxb2 {[%clk 0:00:41.3]} 33.
Kg1 {[%clk 0:00:57.1]} 33... Rxd1 {[%clk 0:00:31.1]} 34. Rxd1 {[%clk 0:00:59]}
34... Rd8 {[%clk 0:00:32.4]} 35. Kh2 {[%clk 0:00:58.9]} 35... Rxd1 {[%clk
0:00:30.5]} 36. Bxd1 {[%clk 0:01:00.8]} 36... h4 {[%clk 0:00:32.4]} 37. f4
{[%clk 0:01:01.6]} 37... hxg3+ {[%clk 0:00:26.1]} 38. Nxg3 {[%clk 0:01:03.5]}
38... Bg7 {[%clk 0:00:24.8]} 39. e5 {[%clk 0:01:00.6]} 39... c3 {[%clk
0:00:25.6]} 40. Bc2 {[%clk 0:01:01.7]} 40... Qc4 {[%clk 0:00:25.9]} 41. a3
{[%clk 0:00:59.2]} 41... Bh6 {[%clk 0:00:24.4]} 42. Ne4 {[%clk 0:01:00.5]} 42...
Bxe4 {[%clk 0:00:25]} 43. Qxe4 {[%clk 0:00:53]} 43... Bxf4+ {[%clk 0:00:25.6]}
44. Kg1 {[%clk 0:00:48.6]} 44... Qxe4 {[%clk 0:00:22.5]} 45. Bxe4 {[%clk
0:00:50.5]} 45... Bxe5 {[%clk 0:00:24.1]} 46. Kf1 {[%clk 0:00:51.8]} 46... Bd6
{[%clk 0:00:19.7]} 47. Ke2 {[%clk 0:00:52.3]} 47... f5 {[%clk 0:00:19.1]} 48.
Bb7 {[%clk 0:00:53.1]} 48... a5 {[%clk 0:00:19.7]} 49. bxa5 {[%clk 0:00:55]}
49... Bxa3 {[%clk 0:00:20.4]} 50. Kd3 {[%clk 0:00:56.6]} 50... Kf7 {[%clk
0:00:19.8]} 51. Kxc3 {[%clk 0:00:56.9]} 51... Bc5 {[%clk 0:00:19.4]} 52. Kc4
{[%clk 0:00:57.6]} 52... Bf2 {[%clk 0:00:19.8]} 53. Kd3 {[%clk 0:00:54.7]} 53...
e5 {[%clk 0:00:20.5]} 54. Kc4 {[%clk 0:00:54.4]} 54... e4 {[%clk 0:00:21.2]} 55.
Bc6 {[%clk 0:00:52.4]} 55... Ke6 {[%clk 0:00:21.4]} 56. Kc3 {[%clk 0:00:53.5]}
56... Ke5 {[%clk 0:00:22.1]} 57. Kd2 {[%clk 0:00:54.3]} 57... f4 {[%clk
0:00:22.2]} 58. Ke2 {[%clk 0:00:54.1]} 58... Bc5 {[%clk 0:00:22.8]} 59. Be8
{[%clk 0:00:54.2]} 59... g5 {[%clk 0:00:23.7]} 60. Bd7 {[%clk 0:00:55.7]} 60...
Kd6 {[%clk 0:00:21.5]} 61. Bf5 {[%clk 0:00:56.1]} 61... Ke5 {[%clk 0:00:22.1]}
62. Bc8 {[%clk 0:00:57.2]} 62... Kf6 {[%clk 0:00:22.2]} 63. Bg4 {[%clk 0:00:58]}
63... Kg6 {[%clk 0:00:20.8]} 64. a6 {[%clk 0:00:59.3]} 64... Bb6 {[%clk
0:00:21.4]} 65. Kd2 {[%clk 0:01:00.8]} 65... Kf6 {[%clk 0:00:21.7]} 66. Ke2
{[%clk 0:01:02]} 66... Ke5 {[%clk 0:00:22.6]} 67. Bc8 {[%clk 0:01:02.6]} 67...
Kd4 {[%clk 0:00:20.8]} 68. Bg4 {[%clk 0:01:03.2]} 68... Kc5 {[%clk 0:00:20.6]}
69. Bf5 {[%clk 0:01:03.3]} 69... Kd5 {[%clk 0:00:21.7]} 70. Bc8 {[%clk
0:01:04.1]} 70... Ke5 {[%clk 0:00:21.5]} 71. Bg4 {[%clk 0:01:05.4]} 71... Kd4
{[%clk 0:00:20.5]} 72. Bc8 {[%clk 0:01:06.3]} 72... Kc5 {[%clk 0:00:20.1]} 73.
Bf5 {[%clk 0:01:05.6]} 73... Kd5 {[%clk 0:00:20.5]} 74. Bc8 {[%clk 0:01:06.5]}
74... Ba7 {[%clk 0:00:21.4]} 75. Bg4 {[%clk 0:01:06.8]} 75... Ke5 {[%clk
0:00:21.3]} 76. Bc8 {[%clk 0:01:08]} 76... Kf6 {[%clk 0:00:22]} 77. Bb7 {[%clk
0:01:07.6]} 77... Kf5 {[%clk 0:00:17.4]} 78. Bc8+ {[%clk 0:01:08.5]} 78... Ke5
{[%clk 0:00:17.5]} 79. Bg4 {[%clk 0:01:10]} 79... Kf6 {[%clk 0:00:17.8]} 80. Bc8
{[%clk 0:01:10.2]} 80... Kg6 {[%clk 0:00:18.8]} 81. Bb7 {[%clk 0:01:08.3]} 81...
e3 {[%clk 0:00:17.4]} 82. Bc8 {[%clk 0:01:03.1]} 82... Kh5 {[%clk 0:00:17.6]}
83. Kf3 {[%clk 0:00:40.4]} 83... Kh4 {[%clk 0:00:17.9]} 84. Be6 {[%clk
0:00:17.5]} 84... Bb6 {[%clk 0:00:09.7]} 85. Bd7 {[%clk 0:00:18.4]} 85... Ba7
{[%clk 0:00:10.1]} 86. Be6 {[%clk 0:00:19.7]} 86... Bc5 {[%clk 0:00:10.6]} 87.
Bd7 {[%clk 0:00:20.2]} 87... Bd4 {[%clk 0:00:11.1]} 88. Be6 {[%clk 0:00:21.4]}
88... Ba7 {[%clk 0:00:11.6]} 89. Bd7 {[%clk 0:00:22.9]} 89... Bb6 {[%clk
0:00:10.6]} 90. Be6 {[%clk 0:00:24.3]} 90... Bc5 {[%clk 0:00:10.9]} 91. Bd7
{[%clk 0:00:25.6]} 91... Ba7 {[%clk 0:00:11.4]} 92. Be6 {[%clk 0:00:27.1]} 92...
Kh5 {[%clk 0:00:11.6]} 93. Bf7+ {[%clk 0:00:26.8]} 93... Kh6 {[%clk 0:00:12.3]}
94. Be6 {[%clk 0:00:28.2]} 94... Kg6 {[%clk 0:00:13.4]} 95. Bg4 {[%clk
0:00:29.6]} 95... Kf6 {[%clk 0:00:14.2]} 96. Ke2 {[%clk 0:00:31.2]} 96... Ke5
{[%clk 0:00:15.4]} 97. Kf3 {[%clk 0:00:32.7]} 97... Kd4 {[%clk 0:00:15.8]} 98.
Ke2 {[%clk 0:00:34.6]} 98... Kc5 {[%clk 0:00:16.6]} 99. Bf3 {[%clk 0:00:35.7]}
99... Kb6 {[%clk 0:00:17]} 100. Bb7 {[%clk 0:00:35.8]} 100... Kb5 {[%clk
0:00:18.1]} 101. Bc8 {[%clk 0:00:37.1]} 101... Kc5 {[%clk 0:00:19.1]} 102. Kf3
{[%clk 0:00:38.5]} 102... Kd4 {[%clk 0:00:19.3]} 103. Ke2 {[%clk 0:00:40.1]}
103... Ke4 {[%clk 0:00:20.3]} 104. Bg4 {[%clk 0:00:41.3]} 104... Ke5 {[%clk
0:00:20.1]} 105. Bc8 {[%clk 0:00:42.3]} 105... Kd4 {[%clk 0:00:20.4]} 106. Bg4
{[%clk 0:00:43.7]} 106... Kc5 {[%clk 0:00:21.1]} 107. Bc8 {[%clk 0:00:44.1]}
107... Kb6 {[%clk 0:00:22.1]} 108. Kf3 {[%clk 0:00:45.6]} 108... Kb5 {[%clk
0:00:22.3]} 109. Ke2 {[%clk 0:00:46.7]} 109... Kc4 {[%clk 0:00:23.2]} 110. Bg4
{[%clk 0:00:46.4]} 110... Kd4 {[%clk 0:00:24]} 111. Bf3 {[%clk 0:00:47.9]}
111... Ke5 {[%clk 0:00:24]} 112. Bg4 {[%clk 0:00:49.4]} 112... Ke4 {[%clk
0:00:25]} 113. Bc8 {[%clk 0:00:50.5]} 113... Ke5 {[%clk 0:00:26]} 114. Bg4
{[%clk 0:00:51.7]} 114... Kf6 {[%clk 0:00:27]} 115. Kf3 {[%clk 0:00:52.2]}
115... Kg6 {[%clk 0:00:27.7]} 116. Ke2 {[%clk 0:00:53.7]} 116... Kf6 {[%clk
0:00:28.7]} 117. Kf3 {[%clk 0:00:55.3]} 117... Ke5 {[%clk 0:00:29.9]} 118. Ke2
{[%clk 0:00:57]} 118... Ke4 {[%clk 0:00:31.2]} 119. Bc8 {[%clk 0:00:57]} 119...
Kd4 {[%clk 0:00:31.6]} 120. Bg4 {[%clk 0:00:58.1]} 120... Kc5 {[%clk 0:00:32.6]}
121. Bc8 {[%clk 0:00:59.4]} 121... Kb6 {[%clk 0:00:33.6]} 122. Kf3 {[%clk
0:01:00.7]} 122... Kb5 {[%clk 0:00:32.4]} 123. Ke2 {[%clk 0:01:01.1]} 123... Kb6
{[%clk 0:00:31.7]} 124. Kf3 {[%clk 0:01:02.3]} 124... Bb8 {[%clk 0:00:32.5]}
125. Ke2 {[%clk 0:01:03]} 125... Ba7 {[%clk 0:00:32.7]} 126. Kf3 {[%clk
0:01:04.1]} 126... Kc5 {[%clk 0:00:33.8]} 127. Ke2 {[%clk 0:01:05.3]} 127... Kc4
{[%clk 0:00:35]} 128. Bg4 {[%clk 0:01:06.2]} 128... Kd4 {[%clk 0:00:35.1]} 129.
Bc8 {[%clk 0:01:06.6]} 129... Ke5 {[%clk 0:00:35.7]} 130. Bg4 {[%clk 0:01:07.8]}
130... Kf6 {[%clk 0:00:36.7]} 131. Kf3 {[%clk 0:01:09]} 131... Kg6 {[%clk
0:00:37]} 132. Ke2 {[%clk 0:01:10.3]} 1/2-1/2

[Event "***Titled Tuesday 3|2 Blitz"]
[Site "Chess.com"]
[Date "2017.02.07"]
[Round "7"]
[White "RoelandPruijssers"]
[Black "BillieKimbah"]
[Result "0-1"]
[WhiteElo "2489"]
[BlackElo "2611"]
[TimeControl "180+2"]
[EndTime "14:37:27 PST"]
[Termination "BillieKimbah won by resignation"]

1. e4 {[%clk 0:03:02]} 1... e5 {[%clk 0:03:00.4]} 2. Nf3 {[%clk 0:03:01.8]} 2...
Nc6 {[%clk 0:03:01]} 3. Bc4 {[%clk 0:03:02.6]} 3... Bc5 {[%clk 0:03:01.4]} 4. c3
{[%clk 0:03:01]} 4... Nf6 {[%clk 0:03:02.4]} 5. d3 {[%clk 0:03:02.1]} 5... O-O
{[%clk 0:03:02.6]} 6. O-O {[%clk 0:03:01.9]} 6... d6 {[%clk 0:03:00.4]} 7. a4
{[%clk 0:02:59.8]} 7... a6 {[%clk 0:03:00.7]} 8. Na3 {[%clk 0:03:00]} 8... Ne7
{[%clk 0:02:59]} 9. Bg5 {[%clk 0:02:41.3]} 9... Ng6 {[%clk 0:02:58.3]} 10. Nh4
{[%clk 0:02:41.2]} 10... Kh8 {[%clk 0:02:52.9]} 11. Qf3 {[%clk 0:01:46.5]} 11...
h6 {[%clk 0:02:47.2]} 12. Bxf6 {[%clk 0:01:46]} 12... Qxf6 {[%clk 0:02:47.6]}
13. Qxf6 {[%clk 0:01:47.1]} 13... gxf6 {[%clk 0:02:49.1]} 14. Nf3 {[%clk
0:01:46.5]} 14... f5 {[%clk 0:02:47.4]} 15. Nc2 {[%clk 0:01:39.5]} 15... fxe4
{[%clk 0:02:47.5]} 16. dxe4 {[%clk 0:01:40.9]} 16... f5 {[%clk 0:02:49.2]} 17.
Bd3 {[%clk 0:01:40.9]} 17... Nf4 {[%clk 0:02:47.9]} 18. Nfe1 {[%clk 0:01:38]}
18... Ba7 {[%clk 0:02:24.2]} 19. exf5 {[%clk 0:01:37.8]} 19... Nxd3 {[%clk
0:02:11.3]} 20. Nxd3 {[%clk 0:01:39.7]} 20... Bxf5 {[%clk 0:02:12.4]} 21. Rad1
{[%clk 0:01:40.8]} 21... Rf7 {[%clk 0:02:10.9]} 22. Ne3 {[%clk 0:01:38.6]} 22...
Bd7 {[%clk 0:02:11.6]} 23. Nd5 {[%clk 0:01:32.1]} 23... Bxa4 {[%clk 0:02:10.8]}
24. Rd2 {[%clk 0:01:30.2]} 24... Raf8 {[%clk 0:02:11]} 25. c4 {[%clk 0:01:28.5]}
25... Bd4 {[%clk 0:02:07.8]} 26. Kh1 {[%clk 0:01:28]} 26... Bb3 {[%clk
0:02:04.5]} 0-1

[Event "***Titled Tuesday 3|2 Blitz"]
[Site "Chess.com"]
[Date "2017.02.07"]
[Round "7"]
[White "ZEN-22"]
[Black "kiborg1987"]
[Result "0-1"]
[WhiteElo "2379"]
[BlackElo "2630"]
[TimeControl "180+2"]
[EndTime "14:37:41 PST"]
[Termination "kiborg1987 won by resignation"]

1. e3 {[%clk 0:03:02]} 1... g6 {[%clk 0:03:00.3]} 2. h4 {[%clk 0:03:02.4]} 2...
Nf6 {[%clk 0:02:56]} 3. h5 {[%clk 0:03:03.1]} 3... Nxh5 {[%clk 0:02:54.9]} 4.
Rxh5 {[%clk 0:03:05]} 4... gxh5 {[%clk 0:02:56.8]} 5. Qxh5 {[%clk 0:03:06.1]}
5... d5 {[%clk 0:02:58.3]} 6. c4 {[%clk 0:03:07]} 6... c6 {[%clk 0:02:58.7]} 7.
Nc3 {[%clk 0:03:08.3]} 7... Nd7 {[%clk 0:02:59.3]} 8. cxd5 {[%clk 0:03:07.1]}
8... Nf6 {[%clk 0:03:00.3]} 9. Qe5 {[%clk 0:03:07.8]} 9... Qd6 {[%clk
0:02:52.1]} 10. Qxd6 {[%clk 0:03:08.5]} 10... exd6 {[%clk 0:02:53]} 11. dxc6
{[%clk 0:03:10.4]} 11... bxc6 {[%clk 0:02:54.9]} 12. g3 {[%clk 0:03:11.9]} 12...
Bd7 {[%clk 0:02:49.7]} 13. b3 {[%clk 0:03:12.4]} 13... h5 {[%clk 0:02:19.4]} 14.
Nf3 {[%clk 0:03:11.3]} 14... Be7 {[%clk 0:02:15.5]} 15. Bg2 {[%clk 0:03:08.6]}
15... Rc8 {[%clk 0:02:14.4]} 16. Ba3 {[%clk 0:03:08.3]} 16... c5 {[%clk
0:02:08.6]} 17. Nh4 {[%clk 0:03:01.5]} 17... Ng4 {[%clk 0:02:03.3]} 18. Bb2
{[%clk 0:02:46.6]} 18... Bxh4 {[%clk 0:01:52.6]} 19. gxh4 {[%clk 0:02:47.6]}
19... Rg8 {[%clk 0:01:54.3]} 20. Bb7 {[%clk 0:02:33.8]} 20... Rb8 {[%clk
0:01:49.6]} 21. Ba6 {[%clk 0:02:25.3]} 21... Bc6 {[%clk 0:01:46.3]} 22. Ke2
{[%clk 0:02:21.5]} 22... Ne5 {[%clk 0:01:16.1]} 23. f4 {[%clk 0:02:05.3]} 23...
Rg2+ {[%clk 0:01:11.5]} 24. Kf1 {[%clk 0:02:06.1]} 24... Rxd2 {[%clk 0:01:07.2]}
25. Bc1 {[%clk 0:02:06.1]} 25... Bg2+ {[%clk 0:01:07.1]} 0-1